bitfinex-derivatives/quotes_SOLF0:USTF0_20250312
["timestamp","ask_amount","ask_price","bid_price","bid_amount"]
[1741758560190,17.65241878,122.14,122.11,0.05846186]
[1741758560588,17.65241878,122.14,122.11,8.24966186]
[1741758561994,17.65241878,122.14,122.11,0.05846186]
[1741758562190,25.84251878,122.14,122.11,0.05846186]
[1741758565292,8.68574529,122.17,122.12,31.08]
[1741758565489,132.44450702,122.2,122.17,190.0]
[1741758565791,35.89897023,122.22,122.19,35.19164718]
[1741758565993,868.31570067,122.31,122.21,35.19164718]
[1741758566189,868.31570067,122.31,122.25,17.59582359]
[1741758566390,9.364e-05,122.26,122.25,247.69802359]
[1741758566591,3.215e-05,122.27,122.25,241.97582359]
[1741758566792,3.215e-05,122.27,122.25,239.51582359]
[1741758567892,3.215e-05,122.27,122.25,428.32097695]
[1741758568190,3.215e-05,122.27,122.25,410.72515336]
[1741758568786,3.215e-05,122.27,122.25,378.80515336]
[1741758569392,3.215e-05,122.27,122.26,109.30824668]
[1741758569994,3.215e-05,122.27,122.26,141.18824668]
[1741758570494,3.215e-05,122.27,122.26,331.18824668]
[1741758570798,281.7107,122.34,122.26,638.23454326]
[1741758570997,281.7107,122.34,122.26,635.77454326]
[1741758571198,249.8507,122.34,122.26,643.95604326]
[1741758571998,249.8507,122.34,122.29,0.05579422]
[1741758571999,0.05390889,122.31,122.29,0.05579422]
[1741758572493,0.05390889,122.31,122.3,89.78499158]
[1741758572694,231.64650569,122.34,122.3,89.78499158]
[1741758573599,231.64650569,122.34,122.29,11.26537944]
[1741758573800,0.06227904,122.33,122.29,11.26537944]
[1741758575101,31.80227904,122.33,122.29,11.26537944]
[1741758575297,8.1776,122.32,122.29,0.05579422]
[1741758575600,31.80227904,122.33,122.27,11.20958522]
[1741758576597,39.97927904,122.33,122.29,0.05546288]
[1741758576800,39.97927904,122.33,122.29,11.2650481]
[1741758577503,8.178,122.32,122.29,11.2650481]
[1741758577703,31.80227904,122.33,122.29,11.2650481]
[1741758577897,30.13558967,122.32,122.29,4.5636481]
[1741758578098,8.1795,122.29,122.28,73.377209]
[1741758578303,31.7,122.29,122.28,70.026309]
[1741758578893,31.68,122.31,122.28,30.27785566]
[1741758579200,0.05875975,122.3,122.28,30.27785566]
[1741758580000,0.05875975,122.3,122.27,31.73653353]
[1741758581205,0.05875975,122.3,122.27,0.05653353]
[1741758583807,31.69875975,122.3,122.27,0.05653353]
[1741758584100,0.05875975,122.3,122.27,0.05653353]
[1741758587306,8.18,122.29,122.27,0.05653353]
[1741758588305,8.1802,122.28,122.27,0.05653353]
[1741758589112,31.56,122.32,122.27,132.0075987]
[1741758589910,263.18650569,122.34,122.27,132.0075987]
[1741758590106,291.27449536,122.34,122.27,132.0075987]
[1741758590304,0.06044659,122.32,122.27,132.0075987]
[1741758590604,8.1802,122.28,122.27,0.05653353]
[1741758593313,8.1802,122.28,122.27,3.353e-05]
[1741758593504,8.1822,122.25,122.24,7.82623617]
[1741758594509,17.56315265,122.25,122.23,7.88761235]
[1741758594709,17.56315265,122.25,122.22,123.79078067]
[1741758594906,19.79595265,122.25,122.22,123.79078067]
[1741758595113,8.1835,122.23,122.22,123.79078067]
[1741758596104,8.1835,122.23,122.21,0.06142763]
[1741758596303,10.4155,122.25,122.21,0.06142763]
[1741758596515,0.05570177,122.23,122.21,0.06142763]
[1741758601212,8.23950177,122.23,122.21,0.06142763]
[1741758601515,0.05570177,122.23,122.21,0.06142763]
[1741758603406,2.14810177,122.23,122.21,0.06142763]
[1741758603807,8.1842,122.22,122.21,0.06142763]
[1741758604210,2.14810177,122.23,122.14,531.3087841]
[1741758604414,8.1872,122.18,122.14,531.3087841]
[1741758604718,31.32,122.21,122.14,531.3087841]
[1741758604914,31.32,122.21,122.16,8.1878]
[1741758605115,61.56009217,122.23,122.16,8.1878]
[1741758605311,8.1862,122.2,122.14,539.4979841]
[1741758605521,61.56009217,122.23,122.18,0.05210298]
[1741758605911,28.12769217,122.21,122.18,0.05210298]
[1741758606111,31.34,122.2,122.18,0.05210298]
[1741758606809,31.37306516,122.22,122.18,0.05210298]
[1741758607208,8.1852,122.21,122.18,0.05210298]
[1741758607414,31.37306516,122.22,122.18,0.05210298]
[1741758608115,0.05306516,122.22,122.18,0.05210298]
[1741758608316,0.05306516,122.22,122.18,8.23850298]
[1741758609615,0.05306516,122.22,122.18,0.05210298]
[1741758610722,8.185,122.21,122.18,0.05210298]
[1741758610911,0.05306516,122.22,122.18,0.05210298]
[1741758612421,8.23766516,122.22,122.18,0.05210298]
[1741758612618,0.05306516,122.22,122.18,0.05210298]
[1741758613314,0.05306516,122.22,122.18,31.25210298]
[1741758614316,0.05306516,122.22,122.2,8.1852]
[1741758614518,0.05306516,122.22,122.18,225.54200298]
[1741758614714,0.05306516,122.22,122.18,253.66969515]
[1741758614919,0.05306516,122.22,122.21,8.1849]
[1741758615625,0.05306516,122.22,122.2,8.1853]
[1741758616422,0.05306516,122.22,122.18,225.54200298]
[1741758616725,8.23776516,122.22,122.18,225.54200298]
[1741758616927,8.23776516,122.22,122.18,233.72840298]
[1741758617123,8.23776516,122.22,122.18,225.54200298]
[1741758617124,0.05306516,122.22,122.18,225.54200298]
[1741758617324,0.05306516,122.22,122.19,8.1862]
[1741758617528,0.05306516,122.22,122.18,225.54200298]
[1741758617818,245.4,122.26,122.22,8.184]
[1741758619128,0.05884435,122.25,122.23,0.05773699]
[1741758621325,0.05884435,122.25,122.23,8.24123699]
[1741758622031,59.27319216,122.25,122.23,0.05773699]
[1741758622229,8.1829,122.24,122.23,0.05773699]
[1741758623632,8.1844,122.22,122.18,194.2899]
[1741758623823,59.27319216,122.25,122.18,194.2899]
[1741758623824,59.21434781,122.25,122.18,190.0]
[1741758624029,28.11434781,122.23,122.18,190.0]
[1741758624229,8.1863,122.19,122.14,35.2743]
[1741758624632,28.11434781,122.21,122.14,35.2743]
[1741758624925,8.1876,122.17,122.15,0.05316869]
[1741758625132,0.05627372,122.18,122.15,0.05316869]
[1741758625333,8.24367372,122.18,122.15,0.05316869]
[1741758625533,0.05627372,122.18,122.15,0.05316869]
[1741758627834,8.24337372,122.18,122.15,0.05316869]
[1741758628137,0.05627372,122.18,122.15,31.17316869]
[1741758628331,0.05627372,122.18,122.15,33.35546869]
[1741758628632,0.05627372,122.18,122.17,8.1876]
[1741758630031,0.05627372,122.18,122.16,8.1879]
[1741758630236,0.05627372,122.18,122.15,33.35546869]
[1741758630538,0.05627372,122.18,122.16,8.1878]
[1741758631036,0.05627372,122.18,122.15,33.35546869]
[1741758632536,0.05627372,122.18,122.17,8.1876]
[1741758634543,0.05627372,122.18,122.15,41.54386869]
[1741758634941,0.05627372,122.18,122.15,33.35546869]
[1741758635142,0.05627372,122.18,122.16,8.1879]
[1741758636441,0.05627372,122.18,122.15,2.23546869]
[1741758637546,0.05627372,122.18,122.15,10.42406869]
[1741758638746,0.05627372,122.18,122.16,8.1881]
[1741758640642,0.05627372,122.18,122.15,0.05316869]
[1741758640643,245.58,122.17,122.15,0.05316869]
[1741758645354,245.58,122.17,122.15,8.24166869]
[1741758647352,245.58,122.17,122.16,8.1882]
[1741758649554,245.58,122.17,122.15,0.05316869]
[1741758650357,245.58,122.17,122.15,8.24146869]
[1741758651056,245.58,122.17,122.15,0.05316869]
[1741758651255,245.58,122.17,122.16,8.1882]
[1741758652849,245.58,122.17,122.15,0.05316869]
[1741758653050,245.58,122.17,122.15,8.24176869]
[1741758653256,245.58,122.17,122.15,0.05316869]
[1741758653456,253.7678,122.17,122.15,0.05316869]
[1741758653657,245.58,122.17,122.15,0.05316869]
[1741758654357,245.58,122.17,122.15,8.24196869]
[1741758655558,8.1882,122.16,122.15,0.05316869]
[1741758656261,253.7678,122.17,122.15,0.05316869]
[1741758656457,245.58,122.17,122.15,0.05316869]
[1741758658865,253.7678,122.17,122.15,0.05316869]
[1741758660268,245.58,122.17,122.15,8.24206869]
[1741758661765,245.58,122.17,122.15,0.05316869]
[1741758662272,8.1882,122.16,122.15,0.05316869]
[1741758662767,8.19,122.14,122.1,84.50797906]
[1741758663163,17.58972366,122.16,122.1,45.23597906]
[1741758663363,19.75672366,122.16,122.1,45.23597906]
[1741758663760,8.2487048,122.14,122.1,45.23597906]
[1741758663965,0.0587048,122.14,122.12,0.05736378]
[1741758664365,8.2486048,122.14,122.12,0.05736378]
[1741758665065,48.72842846,122.14,122.12,0.05736378]
[1741758665271,48.72842846,122.14,122.1,45.23597906]
[1741758666266,48.72842846,122.14,122.07,62.82570272]
[1741758666471,48.72842846,122.14,122.11,0.06098296]
[1741758666663,0.0587048,122.14,122.11,0.06098296]
[1741758667067,0.0587048,122.14,122.12,8.1909]
[1741758667669,0.0587048,122.14,122.11,0.06098296]
[1741758670879,0.0587048,122.14,122.11,8.25228296]
[1741758671273,0.0587048,122.14,122.12,8.1903]
[1741758672376,0.0587048,122.14,122.11,8.25228296]
[1741758672574,0.0587048,122.14,122.11,0.06098296]
[1741758673076,0.0587048,122.14,122.11,8.25238296]
[1741758674982,8.2483048,122.14,122.11,8.25238296]
[1741758675379,17.64842846,122.14,122.11,0.06098296]
[1741758675579,8.1909,122.12,122.11,0.06098296]
[1741758678587,8.1906,122.13,122.11,0.06098296]
[1741758678789,31.1387048,122.14,122.11,0.06098296]
[1741758678984,8.1909,122.12,122.11,0.06098296]
[1741758681690,8.1906,122.13,122.11,0.06098296]
[1741758682579,8.1909,122.12,122.11,0.06098296]
[1741758682777,31.1387048,122.14,122.11,0.06098296]
[1741758683188,8.1908,122.13,122.11,0.06098296]
[1741758684489,8.1909,122.12,122.11,0.06098296]
[1741758686082,8.1933,122.09,122.07,190.0]
[1741758686282,17.58972366,122.12,122.06,45.23597906]
[1741758687194,8.1933,122.09,122.06,45.23597906]
[1741758687995,8.1933,122.09,122.06,8.1949]
[1741758688386,0.05468515,122.1,122.07,8.1943]
[1741758688891,0.05468515,122.1,122.05,35.335]
[1741758689195,8.24728515,122.1,122.06,8.1945]
[1741758689391,0.05468515,122.1,122.05,52.92472366]
[1741758690795,0.05468515,122.1,122.05,242.92472366]
[1741758690995,0.05468515,122.1,122.07,8.1939]
[1741758692293,0.05468515,122.1,122.08,8.1935]
[1741758692891,0.05468515,122.1,122.05,242.92472366]
[1741758693097,0.05468515,122.1,122.07,8.1939]
[1741758693697,0.05468515,122.1,122.08,8.1935]
[1741758696397,0.05468515,122.1,122.05,254.27144608]
[1741758697099,0.05468515,122.1,122.08,8.193]
[1741758699696,245.76,122.13,122.09,13.43939995]
[1741758699889,11.27259995,122.17,122.12,11.27259995]
[1741758700295,285.0272,122.18,122.13,8.19]
[1741758700702,0.05503079,122.17,122.14,0.05479818]
[1741758701902,8.24273079,122.17,122.14,0.05479818]
[1741758703003,0.05503079,122.17,122.14,0.05479818]
[1741758703204,245.74,122.23,122.15,17.59733275]
[1741758703407,245.74,122.23,122.17,17.59733275]
[1741758703611,245.74,122.23,122.21,8.1847]
[1741758704411,245.79249193,122.23,122.22,8.1842]
[1741758704610,0.05249193,122.23,122.22,8.1842]
[1741758704811,263.33733275,122.28,122.24,8.1825]
[1741758704812,294.41733275,122.28,122.24,8.1825]
[1741758705213,276.82,122.28,122.21,17.59733275]
[1741758705414,245.74,122.28,122.23,17.59733275]
[1741758705709,245.74,122.28,122.23,48.67733275]
[1741758705915,0.06028079,122.27,122.26,8.1815]
[1741758706106,0.06028079,122.27,122.24,0.05454767]
[1741758706610,33.1079,122.32,122.25,17.59733275]
[1741758706809,276.76,122.33,122.26,31.08]
[1741758707009,276.76,122.33,122.28,8.1797]
[1741758707213,276.76,122.33,122.26,31.08]
[1741758707516,276.76,122.33,122.28,0.06276782]
[1741758707517,0.05598438,122.31,122.28,0.06276782]
[1741758708107,8.1795,122.29,122.28,0.06276782]
[1741758709415,48.67733275,122.3,122.28,0.06276782]
[1741758710309,50.79943275,122.3,122.21,192.208]
[1741758710514,17.59733275,122.28,122.21,192.208]
[1741758710715,39.2413,122.27,122.21,192.208]
[1741758711014,31.06,122.27,122.21,190.0]
[1741758711213,8.1821,122.26,122.21,190.0]
[1741758711415,0.06054287,122.25,122.23,0.05431708]
[1741758712818,8.24274287,122.25,122.23,0.05431708]
[1741758713606,0.06054287,122.25,122.23,0.05431708]
[1741758715119,0.06054287,122.25,122.24,8.1829]
[1741758715720,0.06054287,122.25,122.23,25.83494983]
[1741758715919,0.06054287,122.25,122.23,17.65164983]
[1741758716121,0.06054287,122.25,122.23,0.05431708]
[1741758719022,8.24334287,122.25,122.23,0.05431708]
[1741758719222,0.06054287,122.25,122.23,0.05431708]
[1741758719924,8.1829,122.24,122.23,0.05431708]
[1741758720114,39.2229,122.24,122.23,0.05431708]
[1741758720425,8.185,122.21,122.17,211.78223275]
[1741758720622,50.66453275,122.24,122.17,211.78223275]
[1741758720816,50.66453275,122.24,122.17,190.0]
[1741758721016,8.186,122.2,122.17,190.0]
[1741758721416,8.24062769,122.2,122.17,190.05899983]
[1741758722221,0.05462769,122.2,122.17,190.05899983]
[1741758722421,0.05462769,122.2,122.17,207.65633258]
[1741758723222,0.05462769,122.2,122.19,8.1862]
[1741758723420,31.04,122.25,122.19,17.59733275]
[1741758723822,39.2223,122.25,122.2,8.1851]
[1741758724428,247.6421,122.26,122.19,17.59733275]
[1741758724725,0.06143122,122.24,122.21,0.05189031]
[1741758725620,0.06143122,122.24,122.21,8.23619031]
[1741758726323,0.06143122,122.24,122.21,0.05189031]
[1741758726928,8.24453122,122.24,122.21,0.05189031]
[1741758728426,8.1838,122.23,122.21,0.05189031]
[1741758729326,8.24463122,122.24,122.21,0.05189031]
[1741758730224,0.06143122,122.24,122.21,8.23669031]
[1741758731430,0.06143122,122.24,122.21,0.05189031]
[1741758732023,0.06143122,122.24,122.21,17.64922306]
[1741758732224,0.06143122,122.24,122.21,0.05189031]
[1741758732626,0.06143122,122.24,122.21,8.23619031]
[1741758733530,0.06143122,122.24,122.22,8.184]
[1741758734227,0.06143122,122.24,122.23,8.1835]
[1741758734430,0.00028057,122.24,122.23,25.78083275]
[1741758736032,8.1798,122.29,122.23,17.59733275]
[1741758736228,8.1798,122.29,122.26,8.181]
[1741758737028,8.1792,122.3,122.27,8.1804]
[1741758737234,0.05498915,122.29,122.27,8.1804]
[1741758737433,0.05498915,122.29,122.26,0.05205888]
[1741758737634,0.05498915,122.29,122.27,8.1809]
[1741758741430,0.05498915,122.29,122.28,8.1802]
[1741758743543,0.05498915,122.29,122.27,56.79813275]
[1741758743837,0.05498915,122.29,122.27,31.02]
[1741758745142,0.05498915,122.29,122.27,39.2004]
[1741758745340,0.05498915,122.29,122.27,31.02]
[1741758745542,8.1805,122.28,122.26,0.05205888]
[1741758745937,8.1805,122.28,122.26,45.28803794]
[1741758747142,0.05498915,122.29,122.26,45.28803794]
[1741758747143,8.1809,122.27,122.26,45.28803794]
[1741758747846,8.1815,122.26,122.25,89.78499158]
[1741758748039,8.1815,122.26,122.25,35.07382952]
[1741758748232,2.46,122.26,122.24,134.67748737]
[1741758748436,48.61733275,122.25,122.23,20.2434192]
[1741758748632,276.44,122.24,122.23,6.6525192]
[1741758749545,284.6229,122.24,122.23,6.6525192]
[1741758751842,284.6229,122.24,122.22,0.05512763]
[1741758752038,8.1835,122.23,122.22,0.05512763]
[1741758754944,25.78083275,122.23,122.22,2.763e-05]
[1741758755240,20.05733275,122.23,122.14,2.1443]
[1741758755447,17.59733275,122.2,122.14,2.1443]
[1741758755745,8.1873,122.18,122.14,2.1443]
[1741758755947,31.02,122.2,122.15,8.1884]
[1741758756141,31.02,122.2,122.14,2.1443]
[1741758756342,0.05848846,122.19,122.16,0.05723328]
[1741758756646,0.05848846,122.19,122.17,8.1875]
[1741758757037,0.05848846,122.19,122.16,0.05723328]
[1741758757237,0.05848846,122.19,122.16,8.24513328]
[1741758760252,8.24468846,122.19,122.16,0.05723328]
[1741758761148,0.05848846,122.19,122.16,8.24533328]
[1741758762546,0.05848846,122.19,122.16,0.05723328]
[1741758763053,0.05848846,122.19,122.18,8.1869]
[1741758763350,0.05848846,122.19,122.17,17.59733275]
[1741758763351,245.42,122.24,122.17,19.63553275]
[1741758763756,8.1839,122.23,122.19,8.1858]
[1741758764142,245.42,122.24,122.19,8.1858]
[1741758764349,0.0533578,122.22,122.2,0.05891885]
[1741758765454,0.0533578,122.22,122.2,8.24441885]
[1741758765948,0.0533578,122.22,122.21,8.1849]
[1741758766255,0.0533578,122.22,122.2,0.05891885]
[1741758766751,0.0533578,122.22,122.2,8.24421885]
[1741758766953,0.0533578,122.22,122.2,0.05891885]
[1741758769352,245.42,122.24,122.2,0.05891885]
[1741758769552,245.42,122.24,122.21,17.59733275]
[1741758769754,245.42,122.24,122.23,8.1835]
[1741758770352,245.42,122.24,122.22,8.1839]
[1741758770655,245.42,122.24,122.21,17.59733275]
[1741758771050,245.42,122.24,122.21,25.78193275]
[1741758772555,245.42,122.24,122.22,8.1841]
[1741758775257,245.42,122.24,122.21,17.59733275]
[1741758777358,245.42,122.24,122.22,8.1838]
[1741758780759,245.42,122.24,122.21,17.59733275]
[1741758780959,245.42,122.24,122.23,8.1835]
[1741758781355,245.42,122.24,122.21,17.59733275]
[1741758781556,245.42,122.24,122.22,8.184]
[1741758782256,245.42,122.24,122.22,19.43012508]
[1741758783665,245.42,122.24,122.23,8.1835]
[1741758784160,0.05799354,122.25,122.23,11.24612508]
[1741758784457,0.05799354,122.25,122.24,19.42902508]
[1741758784862,245.5,122.29,122.28,8.1802]
[1741758785065,45.3310327,122.32,122.28,11.24612508]
[1741758785267,45.3310327,122.32,122.29,11.24612508]
[1741758785864,45.3310327,122.32,122.29,19.42522508]
[1741758786166,45.38992052,122.32,122.3,11.24612508]
[1741758786968,0.05888782,122.32,122.3,11.24612508]
[1741758788364,0.05888782,122.32,122.29,0.05325792]
[1741758789266,8.23648782,122.32,122.29,0.05325792]
[1741758790368,0.05888782,122.32,122.29,0.05325792]
[1741758790568,8.1783,122.31,122.29,0.05325792]
[1741758790770,0.05888782,122.32,122.29,0.05325792]
[1741758791074,8.1789,122.3,122.29,0.05325792]
[1741758792866,8.1814,122.27,122.22,56.73404889]
[1741758793574,8.1814,122.27,122.22,48.55014889]
[1741758793778,8.1814,122.27,122.23,8.1835]
[1741758793976,0.05436608,122.26,122.23,8.24606422]
[1741758794968,0.05436608,122.26,122.25,8.1822]
[1741758795175,17.55014889,122.32,122.24,19.59504889]
[1741758795176,31.0,122.31,122.24,19.59504889]
[1741758795572,8.1796,122.29,122.25,8.1819]
[1741758796378,0.06236279,122.28,122.26,0.05477343]
[1741758799276,0.06236279,122.28,122.26,8.23627343]
[1741758800575,8.1772,122.33,122.29,8.1789]
[1741758801673,0.0611294,122.32,122.3,0.06123873]
[1741758801977,0.0611294,122.32,122.3,17.61138762]
[1741758802678,245.5,122.34,122.31,31.0]
[1741758802980,245.5,122.34,122.31,33.1452]
[1741758803173,245.5,122.34,122.32,8.1775]
[1741758803777,245.55493635,122.34,122.32,8.1775]
[1741758804174,253.73123635,122.34,122.31,33.1452]
[1741758804374,245.55493635,122.34,122.31,33.1452]
[1741758804679,245.55493635,122.34,122.31,41.3228]
[1741758805878,245.55493635,122.34,122.32,8.1774]
[1741758808078,245.55493635,122.34,122.32,8.1769]
[1741758808471,245.55493635,122.34,122.31,33.1452]
[1741758808671,245.55493635,122.34,122.31,41.323]
[1741758809981,245.55493635,122.34,122.31,33.1452]
[1741758810181,245.55493635,122.34,122.32,8.1774]
[1741758811274,245.55493635,122.34,122.31,31.0]
[1741758811481,245.55493635,122.34,122.3,19.69688762]
[1741758811984,245.55493635,122.34,122.31,8.1778]
[1741758812483,253.73133635,122.34,122.31,8.1778]
[1741758815086,245.55493635,122.34,122.32,8.1771]
[1741758815886,253.73113635,122.34,122.31,8.1779]
[1741758816082,245.55493635,122.34,122.3,0.06123873]
[1741758816585,8.1781,122.32,122.3,0.06123873]
[1741758817188,245.55493635,122.34,122.3,17.61138762]
[1741758817388,245.55493635,122.34,122.3,48.57138762]
[1741758817781,245.55493635,122.34,122.31,8.1778]
[1741758818180,245.55493635,122.34,122.3,48.57138762]
[1741758818392,8.1769,122.33,122.31,11.22861795]
[1741758819091,245.55493635,122.34,122.31,11.22861795]
[1741758819291,253.73143635,122.34,122.31,19.40681795]
[1741758821395,245.55493635,122.34,122.31,19.40681795]
[1741758821783,245.55493635,122.34,122.32,11.22861795]
[1741758822488,253.73143635,122.34,122.32,11.22861795]
[1741758822689,253.73143635,122.34,122.31,19.40681795]
[1741758823390,245.55493635,122.34,122.3,0.06123873]
[1741758823594,11.22861795,122.31,122.3,0.06123873]
[1741758823891,11.22861795,122.32,122.3,0.06123873]
[1741758824490,8.1777,122.32,122.3,0.06123873]
[1741758824694,42.18861795,122.33,122.3,0.06123873]
[1741758825394,8.1782,122.31,122.3,0.06123873]
[1741758829192,39.1372,122.33,122.3,0.06123873]
[1741758829398,8.1772,122.33,122.3,0.06123873]
[1741758831795,245.55493635,122.34,122.3,0.06123873]
[1741758833099,11.22861795,122.33,122.3,0.06123873]
[1741758833399,8.1775,122.32,122.3,0.06123873]
[1741758834402,8.1782,122.31,122.3,0.06123873]
[1741758835499,11.22861795,122.32,122.3,0.06123873]
[1741758835700,8.1778,122.32,122.3,0.06123873]
[1741758835896,245.55493635,122.34,122.31,11.22861795]
[1741758836102,245.55493635,122.34,122.33,11.22861795]
[1741758837702,245.55493635,122.34,122.32,11.22861795]
[1741758838703,245.55493635,122.34,122.32,19.40551795]
[1741758839204,245.55493635,122.34,122.32,11.22861795]
[1741758839608,0.05493635,122.34,122.33,19.40541795]
[1741758841501,0.05493635,122.34,122.33,11.22861795]
[1741758841707,0.05493635,122.34,122.32,50.36581795]
[1741758843002,0.05493635,122.34,122.31,19.40661795]
[1741758843897,0.05493635,122.34,122.32,8.177]
[1741758847606,0.05493635,122.34,122.3,2.11573873]
[1741758847823,0.05493635,122.34,122.33,19.40541795]
[1741758849812,0.05493635,122.34,122.32,11.22861795]
[1741758850013,0.05493635,122.34,122.31,11.22861795]
[1741758850904,8.23113635,122.34,122.31,19.40651795]
[1741758853218,0.05493635,122.34,122.31,19.40651795]
[1741758853414,0.05493635,122.34,122.31,11.22861795]
[1741758853715,0.05493635,122.34,122.32,8.1775]
[1741758855017,0.05493635,122.34,122.31,11.22861795]
[1741758855207,0.05493635,122.34,122.31,19.40651795]
[1741758855519,8.23123635,122.34,122.31,19.40651795]
[1741758856113,0.05493635,122.34,122.31,11.22861795]
[1741758856318,0.05493635,122.34,122.32,8.1775]
[1741758860723,0.05493635,122.34,122.3,11.28985668]
[1741758861024,11.22861795,122.32,122.3,0.06123873]
[1741758861218,11.22861795,122.31,122.3,0.06123873]
[1741758861429,19.40681795,122.31,122.3,0.06123873]
[1741758862523,8.1799,122.29,122.25,11.22861795]
[1741758863327,8.1799,122.29,122.25,19.41061795]
[1741758863520,8.1799,122.29,122.26,0.05819242]
[1741758863721,0.05511832,122.28,122.26,0.05819242]
[1741758866731,8.23571832,122.28,122.26,0.05819242]
[1741758867728,8.1809,122.27,122.26,0.05819242]
[1741758868031,19.40951795,122.27,122.26,0.05819242]
[1741758877643,11.22861795,122.27,122.2,6.3358]
[1741758877940,11.22861795,122.23,122.2,6.3358]
[1741758878142,19.41251795,122.23,122.2,6.3358]
[1741758878343,11.22861795,122.23,122.2,6.3358]
[1741758878840,19.46726147,122.23,122.2,6.39681325]
[1741758879039,0.05504352,122.23,122.2,6.39681325]
[1741758879238,0.05504352,122.23,122.21,8.1845]
[1741758879639,0.05504352,122.23,122.2,6.39681325]
[1741758880843,8.23864352,122.23,122.2,14.58191325]
[1741758881744,8.23864352,122.23,122.2,6.39681325]
[1741758883246,19.46726147,122.23,122.2,6.39681325]
[1741758884248,19.46726147,122.23,122.2,14.58221325]
[1741758885249,11.28366147,122.23,122.2,6.39681325]
[1741758885547,8.1842,122.22,122.2,6.39681325]
[1741758885842,11.28366147,122.23,122.2,6.39681325]
[1741758886146,11.28366147,122.23,122.2,14.58201325]
[1741758886947,19.46726147,122.23,122.2,14.58201325]
[1741758887447,11.28366147,122.23,122.2,14.58201325]
[1741758888049,19.46756147,122.23,122.2,14.58201325]
[1741758888251,11.28366147,122.23,122.2,14.58201325]
[1741758889548,0.05504352,122.23,122.2,14.58201325]
[1741758890655,0.05504352,122.23,122.2,6.39681325]
[1741758890850,0.05504352,122.23,122.21,8.1845]
[1741758891042,0.05504352,122.23,122.2,6.39681325]
[1741758892449,0.05504352,122.23,122.2,14.58201325]
[1741758893153,11.28366147,122.23,122.2,14.58201325]
[1741758894450,11.28366147,122.23,122.21,8.1846]
[1741758894753,0.05504352,122.23,122.21,11.22861795]
[1741758895143,0.05504352,122.23,122.22,8.1842]
[1741758900053,256.74861795,122.27,122.24,8.1824]
[1741758900361,11.22861795,122.26,122.22,11.22861795]
[1741758900658,19.41061795,122.26,122.22,19.41221795]
[1741758900856,19.41061795,122.26,122.22,11.22861795]
[1741758901062,11.22861795,122.26,122.22,11.22861795]
[1741758901363,0.05405049,122.25,122.24,8.1828]
[1741758901854,0.05405049,122.25,122.23,0.06025204]
[1741758902653,0.05405049,122.25,122.23,8.24345204]
[1741758903353,0.05405049,122.25,122.23,0.06025204]
[1741758903553,0.05405049,122.25,122.24,8.1829]
[1741758903948,245.52,122.27,122.24,11.22861795]
[1741758904151,11.22861795,122.31,122.26,11.22861795]
[1741758904353,11.22861795,122.31,122.27,13.24411795]
[1741758904657,11.22861795,122.31,122.27,2.0155]
[1741758904852,11.22861795,122.28,122.24,42.14861795]
[1741758905056,11.22861795,122.28,122.24,30.92]
[1741758905263,0.05246778,122.27,122.25,0.05164683]
[1741758906368,11.28108573,122.27,122.25,0.05164683]
[1741758907165,11.28108573,122.27,122.25,8.23344683]
[1741758908066,11.28108573,122.27,122.25,0.05164683]
[1741758908259,0.05246778,122.27,122.25,0.05164683]
[1741758909263,11.28108573,122.27,122.25,0.05164683]
[1741758909467,11.22861795,122.26,122.25,0.05164683]
[1741758912070,8.1815,122.26,122.25,0.05164683]
[1741758912268,19.41011795,122.26,122.25,0.05164683]
[1741758912769,19.41011795,122.26,122.22,8.1839]
[1741758913073,8.1829,122.24,122.21,13.37721795]
[1741758913274,8.1829,122.24,122.21,2.1486]
[1741758913872,8.238057,122.24,122.21,2.20569848]
[1741758914576,8.184,122.23,122.21,2.20569848]
[1741758915174,19.41261795,122.23,122.21,2.20569848]
[1741758915969,19.41281795,122.22,122.21,0.05709848]
[1741758916169,11.22861795,122.22,122.16,207.61131795]
[1741758916372,11.22861795,122.21,122.16,238.53131795]
[1741758916574,11.22861795,122.22,122.16,238.53131795]
[1741758916774,11.22861795,122.21,122.16,238.53131795]
[1741758917077,19.41381795,122.21,122.17,8.1872]
[1741758917269,0.05770093,122.2,122.17,8.24281399]
[1741758918174,0.05770093,122.2,122.18,8.1868]
[1741758918878,0.05770093,122.2,122.17,8.24301399]
[1741758919677,0.05770093,122.2,122.18,8.1869]
[1741758919880,0.05770093,122.2,122.17,0.05561399]
[1741758921081,0.05770093,122.2,122.17,8.24281399]
[1741758921677,0.05770093,122.2,122.17,0.05561399]